bitfinex/quotes_ETHUSD_20250520
["timestamp","ask_amount","ask_price","bid_price","bid_amount"]
[1747781118612,3.988354,2507.3,2507.2,29.627]
[1747781119135,4.410854,2507.3,2507.2,29.627]
[1747781119557,3.98851308,2507.2,2507.1,0.1]
[1747781120802,4.41101308,2507.2,2507.1,0.1]
[1747781122502,4.74396123,2507.2,2507.1,0.1]
[1747781123904,4.41101308,2507.2,2507.1,0.1]
[1747781124302,3.98851308,2507.2,2507.1,0.1]
[1747781124504,3.98851308,2507.2,2507.1,1.0065]
[1747781125645,3.98692289,2508.2,2507.3,3.74062535]
[1747781125807,3.98692289,2508.2,2507.5,8.0]
[1747781126007,3.98776044,2507.7,2507.5,8.0]
[1747781126247,3.98776044,2507.7,2507.6,12.839653]
[1747781126541,3.98776044,2507.7,2507.6,16.74201588]
[1747781127238,3.98776044,2507.7,2507.6,3.90236288]
[1747781127442,3.98787685,2507.6,2507.5,8.0]
[1747781127638,3.98787685,2507.6,2507.5,10.165595]
[1747781127942,3.98787685,2507.6,2507.5,12.839653]
[1747781129044,3.98777148,2507.7,2507.5,12.839653]
[1747781129248,3.98777148,2507.7,2507.6,8.74201588]
[1747781129844,3.98692289,2508.2,2507.6,8.74201588]
[1747781130013,3.98770476,2507.8,2507.7,16.964]
[1747781130341,3.98770476,2507.8,2507.7,18.96496]
[1747781130510,3.98770476,2507.8,2507.7,16.964]
[1747781130712,3.98770476,2507.8,2507.7,8.964]
[1747781130940,3.98803589,2507.5,2507.4,25.60925016]
[1747781131145,3.98803589,2507.5,2507.4,42.62760916]
[1747781131562,3.98803589,2507.5,2507.4,38.608]
[1747781135851,3.98803589,2507.5,2507.4,29.645]
[1747781136258,4.41053589,2507.5,2507.4,17.212]
[1747781136555,4.41053589,2507.5,2507.4,29.645]
[1747781138365,4.41053589,2507.5,2507.4,17.212]
[1747781138534,4.41053589,2507.5,2507.4,29.646]
[1747781140230,3.98851308,2507.2,2507.1,0.1]
[1747781140460,4.02848697,2507.2,2507.1,0.1]
[1747781140638,3.98851308,2507.2,2507.1,0.1]
[1747781141258,4.41101308,2507.2,2507.1,0.1]
[1747781143055,4.78070455,2507.2,2507.1,0.1]
[1747781145173,4.78070455,2507.2,2507.1,12.486]
[1747781149472,4.78070455,2507.2,2507.1,0.1]
[1747781149680,4.82067844,2507.2,2507.1,0.1]
[1747781149891,4.78070455,2507.2,2507.1,0.1]
[1747781151768,14.76070455,2507.2,2507.1,0.1]
[1747781152287,4.78070455,2507.2,2507.1,0.1]
[1747781153676,4.35820455,2507.2,2507.1,0.1]
[1747781154688,3.98851308,2507.2,2507.1,0.1]
[1747781156364,4.45098697,2507.2,2507.1,0.1]
[1747781156569,4.82067844,2507.2,2507.1,0.1]
[1747781156884,4.78070455,2507.2,2507.1,0.1]
[1747781157095,5.00266788,2507.2,2507.1,0.1]
[1747781157799,4.78070455,2507.2,2507.1,0.1]
[1747781159297,4.35820455,2507.2,2507.1,0.1]
[1747781160700,4.35820455,2507.2,2507.1,12.488]
[1747781163473,14.76070455,2507.2,2507.1,12.488]
[1747781163678,14.76070455,2507.2,2507.1,0.1]
[1747781163984,14.98314975,2507.2,2507.1,0.1]
[1747781165532,18.29498546,2507.2,2507.1,0.1]
[1747781166691,14.98314975,2507.2,2507.1,0.1]
[1747781167900,19.17914975,2507.2,2507.1,0.1]
[1747781168137,14.98314975,2507.2,2507.1,0.1]
[1747781168820,14.56064975,2507.2,2507.1,0.1]
[1747781173815,14.98314975,2507.2,2507.1,0.1]
[1747781174017,22.49098546,2507.2,2507.1,0.1]
[1747781175253,14.98314975,2507.2,2507.1,0.1]
[1747781176942,19.17914975,2507.2,2507.1,0.1]
[1747781177149,14.98314975,2507.2,2507.1,0.1]
[1747781178459,14.56064975,2507.2,2507.1,0.1]
[1747781178766,4.58064975,2507.2,2507.1,21.271]
[1747781178921,4.58064975,2507.2,2507.1,23.3981]
[1747781179115,4.58064975,2507.2,2507.1,24.183]
[1747781179868,4.35820455,2507.2,2507.1,32.183]
[1747781180086,3.98851308,2507.2,2507.1,32.183]
[1747781180284,3.98851308,2507.2,2507.1,24.183]
[1747781180583,3.98851308,2507.2,2507.1,24.56470925]
[1747781183470,3.98851308,2507.2,2507.1,22.0559]
[1747781183794,3.98851308,2507.2,2507.1,0.8849]
[1747781183948,3.98851308,2507.2,2507.1,22.0529]
[1747781184788,3.98851308,2507.2,2507.1,21.268]
[1747781184972,13.96851308,2507.2,2507.1,0.1]
[1747781185177,13.96851308,2507.2,2507.1,12.3]
[1747781185483,13.96851308,2507.2,2507.1,0.1]
[1747781185683,13.96851308,2507.2,2507.1,12.3]
[1747781185884,14.19055328,2507.2,2507.1,12.3]
[1747781186385,14.19055328,2507.2,2507.1,0.1]
[1747781186557,14.61305328,2507.2,2507.1,0.1]
[1747781187603,22.61305328,2507.2,2507.1,0.1]
[1747781189013,23.01830512,2507.2,2507.1,0.1]
[1747781189224,27.21430512,2507.2,2507.1,0.1]
[1747781190007,7.68682476,2506.6,2506.5,0.1]
[1747781190424,7.90886496,2506.6,2506.5,0.1]
[1747781190570,15.90886496,2506.6,2506.5,0.1]
[1747781190972,20.10486496,2506.6,2506.5,0.1]
[1747781191168,15.90886496,2506.6,2506.5,0.1]
[1747781196412,16.24181311,2506.6,2506.5,0.1]
[1747781201693,20.43781311,2506.6,2506.5,0.1]
[1747781201897,12.96695615,2506.6,2506.5,0.1]
[1747781204936,12.54445615,2506.6,2506.5,0.1]
[1747781207338,12.32241595,2506.6,2506.5,0.1]
[1747781210435,12.54344155,2506.6,2506.5,0.1]
[1747781213550,4.54344155,2506.6,2506.5,0.1]
[1747781213746,13.00591544,2506.6,2506.5,0.1]
[1747781213919,12.96594155,2506.6,2506.5,0.1]
[1747781216364,17.16194155,2506.6,2506.5,0.1]
[1747781220664,12.96594155,2506.6,2506.5,0.1]
[1747781221738,12.54344155,2506.6,2506.5,0.1]
[1747781221992,4.54344155,2506.6,2506.5,0.1]
[1747781222139,12.54344155,2506.6,2506.5,0.1]
[1747781223137,12.54344155,2506.6,2506.5,12.166]
[1747781224065,4.2104934,2506.6,2506.5,12.166]
[1747781226645,3.9894678,2506.6,2506.5,12.166]
[1747781227382,4.2104934,2506.6,2506.5,12.166]
[1747781227877,3.9894678,2506.6,2506.5,12.166]
[1747781228650,3.9894678,2506.6,2506.5,14.22639]
[1747781228857,3.9894678,2506.6,2506.5,27.066043]
[1747781229090,9.98,2507.2,2506.6,0.7932]
[1747781229290,3.98930865,2506.7,2506.6,0.7932]
[1747781229587,3.98930865,2506.7,2506.6,39.0532]
[1747781230775,3.98930865,2506.7,2506.6,39.25258822]
[1747781231943,3.98930865,2506.7,2506.6,39.63339965]
[1747781235005,3.98930865,2506.7,2506.6,39.0532]
[1747781235382,3.98930865,2506.7,2506.6,18.0182]
[1747781235582,3.98930865,2506.7,2506.6,39.0492]
[1747781236503,3.98930865,2506.7,2506.6,42.95156288]
[1747781242321,3.98930865,2506.7,2506.6,18.0182]
[1747781242523,3.98930865,2506.7,2506.6,38.134]
[1747781243083,3.98930865,2506.7,2506.6,17.225]
[1747781247718,3.9894678,2506.6,2506.5,12.04]
[1747781247918,3.9894678,2506.6,2506.5,0.1]
[1747781247919,17.70500174,2506.6,2506.5,0.1]
[1747781248226,18.03426842,2506.6,2506.5,0.1]
[1747781248522,14.98276967,2506.6,2506.5,0.1]
[1747781249228,14.1910291,2506.6,2506.5,12.041]
[1747781249634,13.9694678,2506.6,2506.5,12.041]
[1747781249925,13.9694678,2506.6,2506.5,21.012]
[1747781250806,14.33909321,2506.6,2506.5,21.012]
[1747781255302,14.33909321,2506.6,2506.5,21.012]
[1747781255698,13.9694678,2506.6,2506.5,21.012]
[1747781257355,14.33951235,2506.6,2506.5,21.012]
[1747781260055,13.9694678,2506.6,2506.5,21.012]
[1747781260958,13.9694678,2506.6,2506.5,26.54811]
[1747781260959,3.9894678,2506.6,2506.5,26.54811]
[1747781261253,3.9894678,2506.6,2506.5,3.0063]
[1747781261426,3.9894678,2506.6,2506.5,21.8171]
[1747781263025,3.98930865,2506.7,2506.5,29.8171]
[1747781263262,3.9894678,2506.6,2506.5,29.7806]
[1747781263459,3.9894678,2506.6,2506.5,36.92956]
[1747781264058,3.9894678,2506.6,2506.5,36.705871]
[1747781264464,3.9894678,2506.6,2506.5,37.08704129]
[1747781264826,3.9894678,2506.6,2506.5,14.38756029]
[1747781265128,3.9894678,2506.6,2506.5,30.15977029]
[1747781265324,3.9894678,2506.6,2506.5,21.19077029]
[1747781265531,3.98787685,2507.6,2506.7,0.7939]
[1747781265764,0.4225,2507.8,2506.7,0.7939]
[1747781265765,3.98883127,2507.0,2506.9,8.0]
[1747781266069,3.98883127,2507.0,2506.9,23.23809]
[1747781267143,3.98883127,2507.0,2506.9,23.61926029]
[1747781267571,0.4225,2508.1,2507.0,0.8187]
[1747781267874,0.4225,2508.1,2507.2,8.8187]
[1747781267875,3.98838234,2507.3,2507.2,8.8187]
[1747781268038,3.98838234,2507.3,2507.2,13.65147]
[1747781268431,3.98838234,2507.3,2507.2,13.81395248]
[1747781269663,3.98522385,2507.3,2507.2,13.81395248]
[1747781270657,3.98522385,2507.3,2507.2,11.37995248]
[1747781270840,0.4225,2508.5,2507.2,15.95090548]
[1747781271170,3.98755881,2507.8,2507.7,0.798]
[1747781271374,3.98755881,2507.8,2507.7,37.992]
[1747781271551,3.98745493,2507.9,2507.8,8.798]
[1747781271747,3.98745493,2507.9,2507.8,12.5972]
[1747781272661,3.98745493,2507.9,2507.8,33.3712]
[1747781272861,3.98745493,2507.9,2507.8,20.774]
[1747781273067,3.98755881,2507.8,2507.7,17.218]
[1747781273579,3.98755881,2507.8,2507.7,37.99]
[1747781273966,3.98745493,2507.9,2507.7,48.88592]
[1747781274275,4.40864432,2508.7,2507.7,48.88592]
[1747781274276,3.9872288,2508.1,2507.9,0.8004]
[1747781274473,3.9872288,2508.1,2508.0,12.839653]
[1747781274640,4.50842004,2508.9,2508.0,5.640053]
[1747781274846,3.98671247,2508.4,2508.2,0.8004]
[1747781275040,0.33294815,2508.8,2508.5,0.8004]
[1747781275293,0.33294815,2508.8,2508.6,0.0398604]
[1747781275450,4.31895962,2508.8,2508.7,26.0154]
[1747781275650,3.98601147,2508.8,2508.7,33.50017513]
[1747781276787,3.98601147,2508.8,2508.7,32.00172213]
[1747781277085,3.98601147,2508.8,2508.7,31.17872213]
[1747781277447,3.98601147,2508.8,2508.7,26.0154]
[1747781277768,3.98601147,2508.8,2508.7,37.982]
[1747781278696,3.98601147,2508.8,2508.7,17.215]
[1747781278860,3.98601147,2508.8,2508.7,37.982]
[1747781279203,3.98601147,2508.8,2508.7,17.215]
[1747781279364,3.98601147,2508.8,2508.7,37.981]
[1747781279682,3.98601147,2508.8,2508.7,17.215]
[1747781280200,3.98601147,2508.8,2508.7,37.98]
[1747781280858,3.98601147,2508.8,2508.7,17.215]
[1747781281058,4.40851147,2508.8,2508.7,29.017]
[1747781281284,4.40851147,2508.8,2508.7,17.215]
[1747781281590,4.40851147,2508.8,2508.7,29.017]
[1747781285695,3.98612827,2508.7,2508.6,11.802]
[1747781285902,3.98724082,2508.0,2507.9,17.209]
[1747781286200,3.98724082,2508.0,2507.9,37.974]
[1747781286696,3.98724082,2508.0,2507.9,41.7714]
[1747781286867,3.98724082,2508.0,2507.9,42.539]
[1747781287596,3.98724082,2508.0,2507.9,50.539]
[1747781287991,3.98724082,2508.0,2507.9,42.539]
[1747781289522,3.98724082,2508.0,2507.9,21.774]
[1747781289721,3.98724082,2508.0,2507.9,17.209]
[1747781289930,3.98724082,2508.0,2507.9,37.974]
[1747781292818,3.98724082,2508.0,2507.9,17.209]
[1747781292998,4.40974082,2508.0,2507.9,37.974]
[1747781293320,4.40974082,2508.0,2507.9,17.209]
[1747781293486,14.42971471,2508.0,2507.9,17.209]
[1747781293691,14.38974082,2508.0,2507.9,17.209]
[1747781294510,14.75934602,2508.0,2507.9,17.209]
[1747781295503,14.98127441,2508.0,2507.9,17.209]
[1747781295899,22.98127441,2508.0,2507.9,17.209]
[1747781300726,3.98883127,2507.0,2506.9,0.7703]
[1747781300940,3.98883127,2507.0,2506.9,38.7553]
[1747781301119,3.98883127,2507.0,2506.9,42.63083]
[1747781305325,3.98883127,2507.0,2506.9,33.66483]
[1747781305536,3.98883127,2507.0,2506.9,42.63083]
[1747781307708,3.98883127,2507.0,2506.9,29.02]
[1747781307908,3.98883127,2507.0,2506.9,37.986]
[1747781310450,13.96883127,2507.0,2506.9,37.986]
[1747781313616,3.98883127,2507.0,2506.9,37.986]
[1747781315920,3.98883127,2507.0,2506.9,37.987]
[1747781319271,3.98867319,2507.1,2506.9,54.705623]
[1747781319553,3.98867319,2507.1,2507.0,13.641153]
[1747781319753,3.98771782,2507.7,2507.1,0.8015]
[1747781319953,3.98771782,2507.7,2506.9,41.86597]
[1747781319954,3.98848722,2507.3,2507.2,17.721]
[1747781320161,3.98848722,2507.3,2507.2,19.4931]
[1747781320858,3.98848722,2507.3,2507.2,10.5251]
[1747781321171,3.98848722,2507.3,2507.2,21.91010114]
[1747781322169,3.98848722,2507.3,2507.2,21.90810114]
[1747781325549,3.98848722,2507.3,2507.2,12.18810114]
[1747781325750,4.36026919,2507.3,2507.2,21.15510114]
[1747781326160,14.34026919,2507.3,2507.2,21.15510114]
[1747781326456,14.76276919,2507.3,2507.2,21.15510114]
[1747781326646,14.98581413,2507.3,2507.2,21.15510114]
[1747781326866,14.98581413,2507.3,2507.2,20.774]
[1747781329680,3.98883127,2507.0,2506.9,17.214]
[1747781329849,3.98883127,2507.0,2506.9,37.877]
[1747781330476,4.36061324,2507.0,2506.9,37.877]
[1747781330783,4.36061324,2507.0,2506.9,38.6684]
[1747781336384,3.98883127,2507.0,2506.9,38.6684]
[1747781337407,3.98883127,2507.0,2506.9,17.214]
[1747781337604,4.36061324,2507.0,2506.9,37.877]
[1747781339306,4.36061324,2507.0,2506.9,28.91]
[1747781339505,4.36061324,2507.0,2506.9,37.877]
[1747781340110,3.9894678,2506.6,2506.4,0.7764]
[1747781340319,3.9894678,2506.6,2506.5,20.764]
[1747781340680,4.4119678,2506.6,2506.5,11.797]
[1747781340885,4.4119678,2506.6,2506.5,20.765]
[1747781341306,14.3919678,2506.6,2506.5,20.765]
[1747781341683,13.9694678,2506.6,2506.5,20.765]
[1747781341884,14.56392683,2506.6,2506.5,20.765]
[1747781344186,13.9694678,2506.6,2506.5,20.765]
[1747781344406,13.9694678,2506.6,2506.5,22.37879621]
[1747781345437,13.9694678,2506.6,2506.5,20.765]
[1747781345825,13.9694678,2506.6,2506.5,11.797]
[1747781346028,13.9694678,2506.6,2506.5,20.766]
[1747781346702,3.9894678,2506.6,2506.5,20.766]
[1747781348023,3.9894678,2506.6,2506.5,29.5493]
[1747781348227,3.9894678,2506.6,2506.5,38.29131588]
[1747781348621,3.9894678,2506.6,2506.5,36.01336288]
[1747781349108,3.9894678,2506.6,2506.5,35.96656288]
[1747781349709,3.9894678,2506.6,2506.5,36.34761589]
[1747781350245,3.9894678,2506.6,2506.5,33.83271589]
[1747781350560,3.9894678,2506.6,2506.5,20.17805301]
[1747781350842,3.9894678,2506.6,2506.5,29.14605301]
[1747781351244,3.9894678,2506.6,2506.5,28.765]
[1747781354062,3.9894678,2506.6,2506.5,20.765]
[1747781354426,3.9894678,2506.6,2506.5,21.14643092]
[1747781361565,3.9894678,2506.6,2506.5,12.17843092]
[1747781361769,3.9894678,2506.6,2506.5,21.14643092]
[1747781361966,3.9894678,2506.6,2506.5,0.48143092]
[1747781362273,3.9894678,2506.6,2506.5,21.14443092]
[1747781362671,3.9894678,2506.6,2506.5,12.17643092]
[1747781362853,3.9894678,2506.6,2506.5,21.14443092]
[1747781363256,3.9894678,2506.6,2506.5,0.1]
[1747781363455,4.36164131,2506.6,2506.5,20.763]
[1747781364165,4.58496905,2506.6,2506.5,20.763]
[1747781364571,4.21279554,2506.6,2506.5,20.763]
[1747781364973,3.9894678,2506.6,2506.5,20.763]
[1747781365390,3.9894678,2506.6,2506.5,24.63849]
[1747781365678,3.9894678,2506.6,2506.5,25.41369]
[1747781366344,3.9894678,2506.6,2506.5,25.79544647]
[1747781367476,0.3723572,2507.1,2506.6,0.8082]
[1747781367654,3.98893366,2507.0,2506.9,0.8082]
[1747781367849,3.98893366,2507.0,2506.9,26.310853]
[1747781368054,3.98893366,2507.0,2506.9,29.0069383]
[1747781368467,3.98893366,2507.0,2506.9,29.38869477]
[1747781370781,3.98893366,2507.0,2506.9,29.93869477]
[1747781370979,3.98875454,2507.1,2507.0,0.7915]
[1747781371162,3.98875454,2507.1,2507.0,5.631153]
[1747781371358,3.98875454,2507.1,2507.0,8.67070266]
[1747781371577,3.98842324,2507.3,2507.2,0.7686]
[1747781371881,3.98842324,2507.3,2507.2,22.826253]
[1747781373270,3.98842324,2507.3,2507.2,23.20800947]
[1747781373477,3.98842324,2507.3,2507.2,23.30800947]
[1747781373656,3.98842324,2507.3,2507.2,26.04511557]
[1747781374448,3.98842324,2507.3,2507.2,44.85288457]
[1747781375886,12.41133127,2507.0,2506.9,0.47350185]
[1747781376351,12.41133127,2507.0,2506.9,12.16550185]
[1747781376558,12.78262867,2507.0,2506.9,12.16550185]
[1747781376874,12.78262867,2507.0,2506.9,11.692]
[1747781377889,4.78262867,2507.0,2506.9,11.692]
[1747781386410,4.36012867,2507.0,2506.9,11.692]
[1747781386777,3.98883127,2507.0,2506.9,11.692]
[1747781387323,3.98883127,2507.0,2506.9,14.571]
[1747781387520,3.98883127,2507.0,2506.9,11.692]
[1747781389721,3.98883127,2507.0,2506.9,20.66]
[1747781390625,3.98883127,2507.0,2506.9,11.692]
[1747781402146,4.41133127,2507.0,2506.9,11.692]
[1747781402355,3.98930865,2506.7,2506.6,17.219]
[1747781402513,14.39180865,2506.7,2506.6,28.963]
[1747781402926,24.33732198,2506.7,2506.6,28.963]
[1747781403851,24.88732198,2506.7,2506.6,11.744]
[1747781405172,4.41260454,2506.2,2506.1,0.1]
[1747781405323,22.39260454,2506.2,2506.1,11.844]
[1747781405529,21.97010454,2506.2,2506.1,11.844]
[1747781406325,22.34185066,2506.2,2506.1,11.844]
[1747781407566,4.36185066,2506.2,2506.1,11.844]
[1747781407761,4.36185066,2506.2,2506.1,13.10962]
[1747781407964,3.99010454,2506.2,2506.1,13.10962]
[1747781408291,3.99010454,2506.2,2506.1,11.844]
[1747781408846,4.36185066,2506.2,2506.1,11.844]
[1747781409767,4.36185066,2506.2,2506.1,11.845]
[1747781410097,16.88811787,2506.2,2506.1,11.845]
[1747781410390,16.33811787,2506.2,2506.1,11.845]
[1747781411053,14.76435066,2506.2,2506.1,11.845]
[1747781411290,16.33811787,2506.2,2506.1,11.845]
[1747781411677,14.76435066,2506.2,2506.1,11.845]
[1747781411989,23.31435066,2506.2,2506.1,11.845]
[1747781412859,23.31435066,2506.2,2506.1,0.1]
[1747781413060,32.28435066,2506.2,2506.1,0.1]
[1747781413899,26.04171281,2506.2,2506.1,0.1]
[1747781414112,22.76435066,2506.2,2506.1,0.1]
[1747781415467,14.34185066,2506.2,2506.1,11.848]
[1747781416079,13.97010454,2506.2,2506.1,20.819]
[1747781416890,14.30305269,2506.2,2506.1,20.819]
[1747781417994,14.72555269,2506.2,2506.1,20.819]
[1747781418289,14.72555269,2506.2,2506.1,11.848]
[1747781418710,23.27555269,2506.2,2506.1,0.1]
[1747781418891,23.64661592,2506.2,2506.1,0.1]
[1747781419367,23.31366777,2506.2,2506.1,0.1]
[1747781421690,27.50766777,2506.2,2506.1,0.1]
[1747781421892,23.31366777,2506.2,2506.1,0.1]
[1747781423390,26.59102992,2506.2,2506.1,0.1]
[1747781423594,26.92397807,2506.2,2506.1,0.1]
[1747781425656,26.37397807,2506.2,2506.1,0.1]
[1747781425857,14.67411592,2506.2,2506.1,0.1]
[1747781426165,22.67411592,2506.2,2506.1,11.852]
[1747781426471,14.67411592,2506.2,2506.1,11.852]
[1747781427604,22.67411592,2506.2,2506.1,11.852]
[1747781427756,14.34116777,2506.2,2506.1,11.852]
[1747781427956,13.97010454,2506.2,2506.1,11.852]
[1747781428373,21.97010454,2506.2,2506.1,11.852]
[1747781428897,21.97010454,2506.2,2506.1,12.6541]
[1747781429094,21.97010454,2506.2,2506.1,0.1]
[1747781429398,21.97010454,2506.2,2506.1,11.853]
[1747781429697,22.34196506,2506.2,2506.1,11.853]
[1747781430386,22.34196506,2506.2,2506.1,12.6551]
[1747781431680,14.34196506,2506.2,2506.1,12.6551]
[1747781432023,14.34196506,2506.2,2506.1,16.81791]
[1747781432166,4.36196506,2506.2,2506.1,16.81791]
[1747781432600,9.98,2507.0,2506.2,0.7873]
[1747781432799,3.98979707,2506.4,2506.2,0.7873]
[1747781433303,3.98914951,2506.8,2506.4,0.7846]
[1747781433304,3.98923652,2506.8,2506.4,0.7846]
[1747781433468,3.98930865,2506.7,2506.6,0.7846]
[1747781433666,3.98930865,2506.7,2506.6,14.5366]
[1747781433867,3.98930865,2506.7,2506.6,12.5366]
[1747781434169,3.98930865,2506.7,2506.6,21.5086]
[1747781435702,3.98930865,2506.7,2506.6,0.7846]
[1747781436005,3.98930865,2506.7,2506.6,21.5066]
[1747781436191,3.98930865,2506.7,2506.6,23.65726]
[1747781438021,3.98930865,2506.7,2506.6,11.75]
[1747781440227,3.98930865,2506.7,2506.6,12.5214]
[1747781443949,3.98930865,2506.7,2506.6,20.5214]
[1747781445596,3.98930865,2506.7,2506.6,21.4904]
[1747781445839,3.98930865,2506.7,2506.6,20.719]
[1747781447596,3.98930865,2506.7,2506.6,11.75]
[1747781448312,3.99010454,2506.2,2506.1,0.1]
[1747781448638,3.99010454,2506.2,2506.1,20.817]
[1747781451237,3.99010454,2506.2,2506.1,21.5688]
[1747781452041,3.98994355,2506.4,2506.2,0.7518]
[1747781452223,3.98994533,2506.3,2506.2,0.7518]
[1747781452419,3.98988092,2506.4,2506.2,10.0]
[1747781452644,3.98988092,2506.4,2506.3,4.65416288]
[1747781453056,3.9896314,2506.5,2506.4,8.0]
[1747781453265,3.9896314,2506.5,2506.4,8.7518]
[1747781453838,3.9896314,2506.5,2506.4,29.4178]
[1747781454549,3.9896314,2506.5,2506.4,8.7518]
[1747781454725,3.9896314,2506.5,2506.4,30.29298]
[1747781456855,3.9896314,2506.5,2506.4,32.67261408]
[1747781457062,3.98958542,2506.6,2506.5,8.0]
[1747781458551,3.98958542,2506.6,2506.5,8.37963408]
[1747781460151,3.98958542,2506.6,2506.5,17.34863408]
[1747781460648,3.98958542,2506.6,2506.5,12.32837749]
[1747781460849,3.98958542,2506.6,2506.5,13.11627749]
[1747781462128,3.98958542,2506.6,2506.5,1.16753408]
[1747781462334,3.98958542,2506.6,2506.5,9.34863408]
[1747781462931,3.98958542,2506.6,2506.5,0.37963408]
[1747781463137,3.98958542,2506.6,2506.5,9.34863408]
[1747781463722,4.36239096,2506.6,2506.5,9.34863408]
[1747781464259,4.36239096,2506.6,2506.5,0.37963408]
[1747781464458,4.36239096,2506.6,2506.5,20.665]
[1747781465147,4.36239096,2506.6,2506.5,11.696]
[1747781469059,4.78489096,2506.6,2506.5,11.696]
[1747781469663,14.76489096,2506.6,2506.5,11.696]
[1747781472663,14.34239096,2506.6,2506.5,11.696]
[1747781473265,14.34239096,2506.6,2506.5,13.8396]
[1747781473434,4.36239096,2506.6,2506.5,22.6106]
[1747781473636,3.98958542,2506.6,2506.5,22.6106]
[1747781474333,3.98958542,2506.6,2506.5,22.99059267]
[1747781475364,3.98909098,2506.9,2506.7,0.771]
[1747781475565,3.98909098,2506.9,2506.8,2.8771]
[1747781475870,3.98909098,2506.9,2506.8,1.25709267]
[1747781476467,9.98,2507.4,2506.8,4.01839267]
[1747781476780,3.98879295,2507.1,2507.0,8.7613]
[1747781476933,3.98781503,2507.7,2507.1,0.7613]
[1747781477134,3.98851308,2507.2,2507.1,0.7613]
[1747781477369,3.98851308,2507.2,2507.1,10.7613]
[1747781477535,3.98851308,2507.2,2507.1,8.7613]
[1747781478346,3.98851308,2507.2,2507.1,10.7613]
[1747781478669,3.98836144,2507.3,2507.2,8.7613]
[1747781478876,3.98836144,2507.3,2507.2,12.66366288]
[1747781479268,3.98836144,2507.3,2507.2,14.66366288]
[1747781480167,3.98836144,2507.3,2507.2,24.56536288]
[1747781480371,4.41086144,2507.3,2507.2,20.663]
[1747781480582,4.41086144,2507.3,2507.2,11.695]
[1747781480750,4.41086144,2507.3,2507.2,20.662]
[1747781481075,4.78265678,2507.3,2507.2,20.662]
[1747781483178,4.78265678,2507.3,2507.2,11.695]
[1747781487643,4.41117217,2507.1,2507.0,28.912]
[1747781487845,14.76296751,2507.1,2507.0,28.912]
[1747781489258,14.34046751,2507.1,2507.0,28.912]
[1747781489458,4.36046751,2507.1,2507.0,30.90784107]
[1747781489676,3.98755881,2507.8,2507.1,0.8142]
[1747781489862,3.98859884,2507.2,2507.1,0.8142]
[1747781490188,3.98859884,2507.2,2507.1,11.7822]
[1747781490348,3.98859884,2507.2,2507.1,15.68456288]
[1747781490948,3.98842132,2507.3,2507.2,8.0]
[1747781491145,3.98842132,2507.3,2507.2,10.7752]
[1747781491779,3.98842132,2507.3,2507.2,11.15446606]
[1747781492088,3.98842132,2507.3,2507.2,15.05682894]
[1747781492256,3.98842132,2507.3,2507.2,13.05682894]
[1747781492870,3.98842132,2507.3,2507.2,35.71382894]
[1747781493250,3.98842132,2507.3,2507.2,35.33456288]
[1747781494084,3.98842132,2507.3,2507.2,33.33456288]
[1747781494455,3.98842132,2507.3,2507.2,35.33456288]
[1747781495363,3.98842132,2507.3,2507.2,33.33456288]
[1747781495767,3.98842132,2507.3,2507.2,12.67756288]
[1747781496085,3.98842132,2507.3,2507.0,17.221]
[1747781496086,3.98867217,2507.1,2507.0,17.221]
[1747781496387,3.98867217,2507.1,2507.0,37.877]
[1747781496873,3.98867217,2507.1,2507.0,39.877]
[1747781497192,3.98867217,2507.1,2507.0,43.77936288]
[1747781498090,3.98867217,2507.1,2507.0,51.77936288]
[1747781500361,3.98867217,2507.1,2507.0,49.77936288]
[1747781501476,3.98867217,2507.1,2507.0,32.81236288]
[1747781501658,3.98867217,2507.1,2507.0,41.77836288]
[1747781503296,3.98867217,2507.1,2507.0,43.77836288]
[1747781504561,3.98867217,2507.1,2507.0,44.15820127]
[1747781506705,3.98867217,2507.1,2507.0,42.15820127]
[1747781507698,3.98867217,2507.1,2507.0,44.15820127]
[1747781507896,3.98867217,2507.1,2507.0,42.15820127]
[1747781508104,3.98867217,2507.1,2507.0,44.15820127]
[1747781508898,3.98867217,2507.1,2507.0,52.15820127]
[1747781510504,3.98858279,2507.2,2507.1,8.7823]
[1747781510705,3.98858279,2507.2,2507.1,14.68466288]
[1747781512404,3.98828065,2507.4,2507.2,0.7823]
[1747781512627,3.98828065,2507.4,2507.3,0.7823]
[1747781512806,3.98828065,2507.4,2507.3,2.7823]
[1747781513110,3.98828065,2507.4,2507.3,4.28875013]
[1747781514204,3.98828065,2507.4,2507.3,4.66858852]
[1747781514808,3.98803934,2507.5,2507.3,4.66858852]
[1747781514809,3.98811944,2507.5,2507.3,4.66858852]
[1747781515009,3.98819494,2507.4,2507.3,2.66858852]
[1747781515226,3.98819494,2507.4,2507.3,4.66858852]
[1747781515547,3.98819494,2507.4,2507.1,4.37586473]
[1747781515548,3.98851308,2507.2,2507.1,0.47350185]
[1747781515699,4.41101308,2507.2,2507.1,0.47350185]
[1747781516625,3.98851308,2507.2,2507.1,0.47350185]
[1747781516832,3.98851308,2507.2,2507.1,8.47350185]
[1747781517038,3.98851308,2507.2,2507.1,10.63088462]
[1747781517343,3.98819494,2507.4,2507.3,0.7823]
[1747781517549,3.98819494,2507.4,2507.3,19.7483]
[1747781517829,3.98851308,2507.2,2507.1,2.15738277]
[1747781518030,3.98851308,2507.2,2507.1,28.648]
[1747781520706,3.98883127,2507.0,2506.9,0.47350185]
[1747781521532,3.98883127,2507.0,2506.9,21.12050185]
[1747781521734,4.36159926,2507.0,2506.9,21.12050185]
[1747781522545,4.36159926,2507.0,2506.9,32.54425277]
[1747781522753,3.98883127,2507.0,2506.9,33.32575277]
[1747781523031,3.98883127,2507.0,2506.9,20.647]
[1747781523231,4.41133127,2507.0,2506.9,11.681]
[1747781523419,3.98899038,2506.9,2506.8,17.215]
[1747781523625,3.98899038,2506.9,2506.8,37.863]
[1747781524545,3.98978614,2506.4,2506.3,0.47350185]
[1747781524699,4.41228614,2506.4,2506.3,0.47350185]